Cogmind - Beta 12 *** ADVENTURER MODE // 2023.12.13 @ 05:53:59 Player: Peregrine Result: Destroyed by as-68406 with Assembled Blade Performance ------------- Evolutions (0) 0 Regions Visited (2) 400 Robots Destroyed (1) 5 Value Destroyed (2) 2 Prototype IDs (0) 0 Alien Tech Used (0) 0 Bonus (0) 0 TOTAL SCORE: 407 Bonus ------- None Cogmind --------- Core Integrity 0/250 Matter 265/300 Energy 74/100 System Corruption 3% Temperature Cool (0) Movement Treading (160) Location -10/Mines Parts ------- > --- POWER (1) -------- (None) > --- PROPULSION (2) --- Light Treads > --- UTILITY (2) ------ Small Storage Unit Targeting Computer > --- WEAPON (2) ------- Datajack > --- INVENTORY (8) ---- Wheel Compact Wheel Peak State ------------ > --- POWER ------------ Light Ion Engine > --- PROPULSION ------- Aluminum Leg Aluminum Leg > --- UTILITY ---------- Small Storage Unit Utility Shielding > --- WEAPON ----------- EM Pulse Gun Medium Laser > --- INVENTORY -------- Light Ion Engine Light Treads Light Treads Wheel Compact Wheel Medium Laser [Rating: 7] Favorites ----------- Power Light Ion Engine Engine Light Ion Engine Propulsion Aluminum Leg Treads Light Treads Leg Aluminum Leg Utility Small Storage Unit Storage Small Storage Unit Processor Targeting Computer Protection Light Armor Plating Weapon Medium Laser Energy Gun Medium Laser Special Melee Weapon Datajack Build | -11 -10 -10 ------- Run | Jun Mat Min Slots Evolved . | . . . Power . | . . . Propulsion . | . . . Utility . | . . . Weapon . | . . . Parts Attached 10 | . 3 7 Power 2 | . . 2 Engine 2 | . . 2 Core . | . . . Reactor . | . . . Propulsion 2 | . . 2 Treads 2 | . . 2 Leg . | . . . Wheel . | . . . Hover . | . . . Flight . | . . . Utility 3 | . 2 1 Device . | . . . Storage . | . . . Processor 1 | . . 1 Hackware . | . . . Protection 2 | . 2 . Artifact . | . . . Weapon 3 | . 1 2 Energy Gun 2 | . 1 1 Energy Cannon . | . . . Ballistic Gun . | . . . Ballistic Cannon . | . . . Launcher . | . . . Special Weapon . | . . . Impact Weapon . | . . . Slashing Weapon . | . . . Piercing Weapon . | . . . Special Melee Weapon 1 | . . 1 Unidentified Prototypes . | . . . Parts Lost 9 | . . 9 Power 3 | . . 3 Propulsion 2 | . . 2 Utility 1 | . . 1 Weapon 3 | . . 3 Highest Loss Streak 7 | . . 7 To Critical Strikes 1 | . . 1 Average Slot Usage (%) 89 | . 93 86 Engine 12 | . 14 11 Treads 1 | . . 2 Leg 25 | . 28 23 Storage 14 | . 14 14 Protection 7 | . 8 6 Energy Gun 26 | . 28 24 Naked Turns . | . . . Heaviest Build 15 | 12 15 15 Greatest Support 40 | 20 20 40 Greatest Overweight (x) 1 | . . 1 Average Overweight (x) . | . . . Largest Inventory Capacity 8 | 8 8 8 Average Capacity 8 | 8 8 8 Most Carried 8 | 6 8 7 Average Carried 6 | 6 6 6 Final Capacity 8 | 8 8 8 Final Carried 7 | 6 7 2 Class Distribution -------------------- 100% | Mutant Dominant Class ---------------- Mutant | -10/Materials Mutant | -10/Mines Resources | -11 -10 -10 ----------- Run | Jun Mat Min Matter Collected 232 | 200 . 32 Remotely . | . . . Salvage Created 90 | . 42 48 Parts 2 | . 2 . Haulers Intercepted 1 | . 1 . Recyclers Shooed . | . . . Parts Field Recycled . | . . . Retrieved Matter . | . . . Parts Self-Destructed . | . . . Prevented . | . . . Kills | -11 -10 -10 ------- Run | Jun Mat Min Combat Hostiles Destroyed 3 | . . 3 Guns 3 | . . 3 Classes Destroyed 2 | . 1 1 Hauler 1 | . 1 . Assembled 3 | . . 3 Best Kill Streak 2 | . 1 2 Combat Bots Only 2 | . . 2 Max Kills in Single Turn 1 | . 1 1 Gunslinging . | . . . Exploded . | . . . Melee . | . . . Uniques/NPCs Destroyed . | . . . Combat | -11 -10 -10 -------- Run | Jun Mat Min Damage Taken 1024 | . . 1024 Core 276 | . . 276 Absorbed by Shields . | . . . Core Remaining (%) 100 | 100 . . Volleys Fired 20 | . 3 17 Largest 2 | . 2 2 Hottest 100 | . 100 100 Shots Fired 40 | . 6 34 Gun 40 | . 6 34 Cannon . | . . . Launcher . | . . . Special . | . . . Kinetic . | . . . Thermal 31 | . 6 25 Explosive . | . . . Electromagnetic 9 | . . 9 Robot Hit Streak 5 | . 5 5 Robot Miss Streak 3 | . . 3 Penetration Max . | . . . Secondary Targets 1 | . . 1 Max Gunslinging Chain 1 | . . 1 Shots Hit Robots 30 | . 5 25 Core Hits 8 | . 2 6 Critical Kills . | . . . Critical Parts Destroyed . | . . . Critical Strikes 3 | . 1 2 Burn 3 | . 1 2 Melee Attacks 2 | . . 2 Impact . | . . . Slashing . | . . . Piercing . | . . . Sneak Attacks . | . . . Combat Hostiles . | . . . Follow-up Attacks . | . . . Damage Inflicted 359 | . 64 295 Guns 359 | . 64 295 Cannons . | . . . Explosions . | . . . Melee . | . . . Ramming . | . . . Kinetic . | . . . Thermal 313 | . 64 249 Explosive . | . . . Electromagnetic 46 | . . 46 Impact . | . . . Slashing . | . . . Piercing . | . . . Highest Corruption 3 | . . 3 Average Corruption 3 | . . 3 Corruption Purged . | . . . Corruption Blocked . | . . . Effects 3 | . . 3 Message Errors 1 | . . 1 Matter Fused 1 | . . 1 Parts Rejected 1 | . . 1 Overload Shots . | . . . Overflow Damage . | . . . Projectiles . | . . . Explosions . | . . . Melee . | . . . Knockbacks . | . . . Impact . | . . . Kinetic . | . . . Secondary . | . . . Self-Inflicted Damage . | . . . Shots . | . . . Rammed . | . . . Targets Rammed . | . . . Kicked . | . . . Crushed . | . . . Highest Temperature 260 | . 144 260 Average Temperature 110 | . 80 114 Received Heat Transfer 60 | . . 60 Siege Activations . | . . . Robots Corrupted . | . . . Combat Hostiles . | . . . Parts Fried . | . . . Impact Corruptions . | . . . Robots Melted . | . . . Combat Hostiles . | . . . Parts Melted 2 | . 2 . Heat Transferred 1147 | . 259 888 Parts Sabotaged . | . . . Parts Stolen . | . . . Parts Stripped . | . . . Power Chain Reactions . | . . . Missiles Intercepted . | . . . Alert | -11 -10 -10 ------- Run | Jun Mat Min Peak Influence 7 | . 7 2 Initial 2 | . . 2 Average . | . . . Maximum Alert Level . | . . . Low Security (%) 100 | 100 100 100 Level 1 . | . . . Level 2 . | . . . Level 3 . | . . . Level 4 . | . . . Level 5 . | . . . High Security . | . . . Max Security . | . . . Squads Dispatched . | . . . Investigation . | . . . Extermination . | . . . Reinforcement . | . . . Assault . | . . . Garrison . | . . . Intercept . | . . . Searches Triggered . | . . . Construction Impeded . | . . . Haulers Reinforced . | . . . Active Scanning Responses . | . . . Cargo Convoy Interrupts . | . . . Stealth | -11 -10 -10 --------- Run | Jun Mat Min Distress Signals . | . . . Communications Jammed . | . . . Distress Signals . | . . . Times Spotted 15 | . 1 14 Peak Tracking Total 4 | . 1 4 Tactical Retreats . | . . . Traps | -11 -10 -10 ------- Run | Jun Mat Min Traps Triggered . | . . . Indirectly . | . . . Trap Hack Attempts . | . . . Triggered . | . . . Disarmed . | . . . Reprogrammed . | . . . Reused . | . . . Traps Extracted . | . . . Installed . | . . . Triggered . | . . . Machines | -11 -10 -10 ---------- Run | Jun Mat Min Machines Disabled . | . . . Max in Single Turn . | . . . Machines Repaired . | . . . Machines Sabotaged . | . . . Overloaded Fab Kills . | . . . Hacking | -11 -10 -10 --------- Run | Jun Mat Min Machines Accessed 2 | . 2 . Terminals 2 | . 2 . Fabricators . | . . . Repair Stations . | . . . Recycling Units . | . . . Scanalyzers . | . . . Garrison Access . | . . . Total Hacks 4 | . 4 . Successful 3 | . 3 . Failed 1 | . 1 . Catastrophic . | . . . Database Lockouts . | . . . Manual 4 | . 4 . Terminals 4 | . 4 . Fabricators . | . . . Repair Stations . | . . . Recycling Units . | . . . Scanalyzers . | . . . Garrison Access . | . . . Terminal Hacks . | . . . Fabricator Hacks . | . . . Repair Station Hacks . | . . . Recycling Unit Hacks . | . . . Scanalyzer . | . . . Garrison Access Hacks . | . . . Unauthorized Hacks 3 | . 3 . Terminals 3 | . 3 . Assimilate 1 | . 1 . Botnet 2 | . 2 . Fabricators . | . . . Repair Stations . | . . . Recycling Units . | . . . Scanalyzers . | . . . Garrison Access . | . . . Data Cores Recovered . | . . . Used . | . . . Hacking Detections 2 | . 2 . Full Trace Events . | . . . Feedback Events . | . . . Feedback Blocked . | . . . Robot Schematics Acquired . | . . . Robots Built . | . . . Authchips . | . . . Time . | . . . Total Robot Build Rating . | . . . Part Schematics Acquired . | . . . Parts Built . | . . . Authchips . | . . . Time . | . . . Total Part Build Rating . | . . . Parts Repaired . | . . . Time . | . . . Parts Recycled . | . . . Recycled Matter . | . . . Retrieved Matter . | . . . Retrieved Components . | . . . Parts Scanalyzed . | . . . Part Schematics Acquired . | . . . Parts Damaged . | . . . Bothacking | -11 -10 -10 ------------ Run | Jun Mat Min Used RIF Installer . | . . . Robots Hacked 1 | . . 1 Non-combat . | . . . Combat 1 | . . 1 Robot Hacks Applied 1 | . . 1 parse_system 1 | . . 1 Relay Couplers Released . | . . . Fabnet Peak Effective % . | . . . Robots Rewired . | . . . Allies Hacked . | . . . Hacks Repelled . | . . . Allies | -11 -10 -10 -------- Run | Jun Mat Min Total Allies . | . . . Largest Group . | . . . Highest-Rated Group . | . . . Highest-Rated Ally . | . . . Total Orders . | . . . Ally Attacks . | . . . Total Damage . | . . . Kills . | . . . Allies Corrupted . | . . . Allies Melted . | . . . Intel | -11 -10 -10 ------- Run | Jun Mat Min Robot Analysis Total . | . . . Derelict Logs Recovered 1 | . . 1 Drone Launches . | . . . Drone Recoveries . | . . . Exploration | -11 -10 -10 ------------- Run | Jun Mat Min Turns Passed 291 | 2 124 165 Spaces Moved 157 | 2 90 65 Core . | . . . Treads 5 | . . 5 Legs 152 | 2 90 60 Wheels . | . . . Hover . | . . . Flight . | . . . Fastest Speed 120 | 120 120 120 Average Speed 121 | 120 120 124 Slowest Speed 190 | 120 120 190 Overloaded Moves . | . . . Propulsion Burnouts . | . . . Robots Hopped . | . . . Cave-ins Triggered . | . . . Exploration Rate (%) 16 | 2 29 19 Regions Visited 2 Branch Regions 1 Pre-discovered Areas 1 | . . 1 Known Exits Taken . | . . . Unknown Exits Taken 2 | 1 1 . Scrap Searched 1 | . . 1 Spaces Dug . | . . . Terrain Destroyed . | . . . Melee . | . . . Projectile . | . . . AOE . | . . . Terrain Rammed . | . . . Walls Destroyed . | . . . Machines Disabled . | . . . Actions | -11 -10 -10 --------- Run | Jun Mat Min Total 214 | 1 99 114 Wait 21 | . . 21 Move 155 | 1 89 65 Hop . | . . . Pick Up 5 | . 3 2 Fast Attach . | . . . Attach 8 | . 1 7 Detach . | . . . Swap 2 | . 2 . Drop 1 | . 1 . Fire 20 | . 3 17 Melee 2 | . . 2 Ram . | . . . Kick . | . . . Crush . | . . . Escape Stasis . | . . . Rewire . | . . . Trap . | . . . Miscellaneous . | . . . Route ------- -11/Junkyard -10/Materials -10/Mines History --------- Turn | Location | Event 1 | -11/Junkyard | Discovered new exit (range 1) 3 | -11/Junkyard | Entered Materials 83 | -10/Materials | Discovered new exit (range 15) 127 | -10/Materials | Entered Mines 136 | -10/Mines | Assembled infested the area 141 | -10/Mines | Assisted by a Guerilla fighting off Assembled 149 | -10/Mines | Learned location of Zion (-7) 279 | -10/Mines | Core integrity fell below 50% 289 | -10/Mines | Core integrity fell below 20% 292 | -10/Mines | Destroyed by as-68406 with Assembled Blade Last Messages --------------- 00241_ as-65024 destroyed. 00241_ Switching to secondary target: as-24472. 00242_ Med. Laser destroyed. 00252_ as-24472 destroyed. 00264_ Critical hit (Destroy). 00264_ Lgt. Ion Engine destroyed. 00265_ as-93261 suffers critical hit (Burn). 00267_ Aluminum Leg destroyed. 00274_ EM Pulse Gun destroyed. 00274_ Med. Laser destroyed. 00274_ Lgt. Ion Engine destroyed. 00276_ Aluminum Leg destroyed. 00283_ System corrupted: Lgt. Treads rejected. 00285_ Acquired Targeting Computer. 00288_ Jacked as-68406... >>parse_system Reading system data... 00289_ Jacked as-68406... 00289_ Command string: void() 00289_ No effect. Map ----- +----------------------------------------------------+ | ?????????????????????????????????????????????????? | | ?????????????????????????????????????????????????? | | ?????????????????????????????????????????????????# | | ?????????????????????????????????????????????????# | | ?????????????????????????????????????????????????# | | ?????????????????????????????????????????????????# | | ?????????????????????????????????????????????????# | | ?????????????????????????????????????????????????# | | ?????????????????????????????????????????????????# | | ?????????????????????????????????????????????????# | | ?????????????????????????????????????????????????? | | ?????????????????????????????????????????????????? | | ?????????????????????????????????????????????????? | | ?????????????????????????????????????????????????? | | ?????????????????????????????????????????????????? | | ?????????????????????????????????????????????????? | | ?????????????????????????????????????????????????? | | ?????????????????????????????????????????????????# | | ?????????????????????????????????????????????????# | | ????????????????????????????????????????????##???# | | ??????????????????????????????????????????## ##### | | ??????????? % ????#####????????????????# # | | ???????????? % ###* ######?????????? %## ## | | ????????????? %a%% ;;#;###?????#?# #%#% #? | | ???????????????? a ;##### #?# ##* # ? | | ???????????????????????#%@a% % #?# ! #### | | ???????????????????????# = ## ###### %%# #? | | ???????????????????????# ## #?### = #? | | ???????????????????????## ## ### ## | | ????????????????????????## ### %= # | | ?????????????????????????####a #?# = # | | ????????????????????????????# #?#### " # ## | | ????????????????????????????# #????## % "# #? | | ????????????????????????????# ?????# % # ## #? | | ???????????????????????# ### ????## ###???##? | | ??????????????????????# ##### #???????? | | ?????????????????????? #???????? | | ?????????????????????? ###### #???????? | | ?????????????????????? #######????# #???????? | | ??????????????????????????????????????? ???????? | | ??????????????????????????????????????? ??????? | | ??????????????????????????????????????? ###?????? | | ??????????????????????????????????????? #???????? | | ?????????????????????????????????????? #???????? | | ?????????????????????????????????????? ???????? | | ?????????????????????????????????????? ???????? | | ?????????????????????????????????????? #???????? | | ????????????????????????????????????? #????????? | | ????????????????????????????????????? ?????????? | | ????????????????????????????????????? #?????????? | +----------------------------------------------------+ Best States ------------- Heat Dissipation 25 Energy Generation 10 Energy Capacity 125 Matter Stores 300 Matter Capacity 300 Sight Range 16 Terrain Scan Density 10 Armor Coverage 150 Resistance: KI 20 Resistance: TH 20 Resistance: EX 20 Resistance: EM 20 Resistance: I 20 Resistance: S 20 Resistance: P 20 Utility Shielding 33 Evasion (%) 55 Targeting Accuracy 5 Recoil Reduction 2 Offensive Hacking 10 Item Schematics ----------------- None Robot Schematics ------------------ None Fabricated ------------ Nothing Alien Tech Used ----------------- None Achievements -------------- None Challenges ------------ None Game ------ Seed FusionTrackerBrace Manual? 0 Play Time 00:07:27 Cumulative 65.3 hours Start 2023.12.13 @ 05:48:35 End 2023.12.13 @ 05:53:59 Sessions 1 Manual Loads 0 Difficulty Adventurer Special Mode None Game No. 79 Rogue 66 Adventurer 13 Explorer 0 Win Type - Total 0 Types 0/0/0/0/0/0/0/0/0 Lore% 27 Gallery% 56 Achievement% 44 Wizard Run 0 Options --------- ASCII 0 Keyboard 0 Movement Mouse Keybinds 0 Fullscreen 1 Font 36/Smallcaps Map View 76x50 Tactical HUD 1 Map Filters NONE Filters NONE Steam 1 RUN: ebe5b7f5-ebc2-4fbc-9bc6-5249814d4d4f